fUST/lending_fUST_20240927
["ID","MTS","AMOUNT","RATE_DAILY","PERIOD"]
[339222543,1727369267788,-500.0,0.00014919,2]
[339222544,1727369267812,-500.0,0.00014919,2]
[339222545,1727369267837,-500.0,0.00014919,2]
[339222546,1727369267863,-500.0,0.00014919,2]
[339222547,1727369267888,-500.0,0.00014919,2]
[339222548,1727369267911,-500.0,0.00014919,2]
[339222549,1727369267934,-500.0,0.00014919,2]
[339222550,1727369267957,-500.0,0.00014919,2]
[339222551,1727369267980,-500.0,0.00014919,2]
[339222552,1727369268006,-500.0,0.00014919,2]
[339222553,1727369268031,-500.0,0.00014919,2]
[339222554,1727369268054,-500.0,0.00014919,2]
[339222555,1727369268078,-500.0,0.00014919,2]
[339222556,1727369268107,-500.0,0.00014919,2]
[339222557,1727369268129,-500.0,0.00014919,2]
[339222558,1727369268153,-500.0,0.00014919,2]
[339222559,1727369268178,-500.0,0.00014919,2]
[339222560,1727369268202,-500.0,0.00014919,2]
[339222561,1727369268226,-481.50974522,0.00014919,2]
[339222562,1727369268250,-500.0,0.00014919,2]
[339222563,1727369268274,-500.0,0.00014919,2]
[339222564,1727369268297,-499.99999999,0.00014919,2]
[339222565,1727369268320,-179.697721,0.00014993,2]
[339222566,1727369268344,-179.697721,0.00014997,2]
[339222571,1727369300487,163.3098989,0.00013303,2]
[339222575,1727369324188,186.5930807,0.00012638,2]
[339222633,1727369435317,-179.697721,0.00015001,2]
[339222635,1727369435328,-179.697721,0.00015005,2]
[339222637,1727369435338,-179.697721,0.00015009,2]
[339222639,1727369435350,-179.697721,0.00015013,2]
[339222641,1727369435360,-179.697721,0.00015017,2]
[339222643,1727369435369,-179.697721,0.00015021,2]
[339222645,1727369435379,-179.697721,0.00015025,2]
[339222647,1727369435388,-179.697721,0.00015029,2]
[339222649,1727369435398,-179.697721,0.00015033,2]
[339222651,1727369435407,-179.697721,0.00015037,2]
[339222653,1727369435417,-179.697721,0.00015041,2]
[339222655,1727369435427,-179.697721,0.00015045,2]
[339222657,1727369435437,-179.697721,0.00015049,2]
[339222660,1727369435447,-179.697721,0.00015053,2]
[339222662,1727369435456,-179.697721,0.00015057,2]
[339222663,1727369435466,-179.697721,0.0001506,2]
[339222665,1727369435475,-41.03216031,0.00015064,2]
[339222668,1727369435486,-138.66556069,0.00015064,2]
[339222670,1727369435496,-500.0,0.00015068,2]
[339222671,1727369435505,-157.02973778,0.00015068,2]
[339222674,1727369435517,-22.66798322,0.00015068,2]
[339222676,1727369435527,-166.666666,0.00015068,2]
[339222677,1727369435537,-104.23215083,0.00015068,2]
[339222678,1727369435549,-636.53625817,0.00015068,2]
[339222744,1727369438814,-107.665167,0.00015068,2]
[339222745,1727369438823,-166.666666,0.00015421,2]
[339222746,1727369438832,-152.06122768,0.00015622,2]
[339222747,1727369438842,-300.0,0.00015629,2]
[339222748,1727369438852,-300.0,0.00015629,2]
[339222749,1727369438862,-500.42804232,0.0001563,2]
[339222750,1727369438871,-500.0,0.0001563,2]
[339222751,1727369438881,-184.73568887,0.0001563,2]
[339222752,1727369438977,-315.26431113,0.0001563,2]
[339222753,1727369438987,-166.666666,0.00015774,2]
[339222754,1727369438996,-500.0,0.00015863,2]
[339222755,1727369439007,-189.9459373,0.00015863,2]
[339222756,1727369439017,-500.0,0.00015922,2]
[339222757,1727369439028,-501.62818812,0.00015922,2]
[339222758,1727369439037,-151.0,0.00015969,2]
[339222759,1727369439046,-150.0,0.00016,2]
[339222760,1727369439055,-339.436071,0.000161,6]
[339222761,1727369439065,-166.666666,0.00016126,2]
[339222762,1727369439075,-570.59395856,0.00016178,2]
[339222763,1727369439084,-500.0,0.00016178,2]
[339222764,1727369439094,-500.0,0.00016183,2]
[339222765,1727369439103,-500.0,0.00016207,2]
[339222766,1727369439113,-594.23984907,0.00016373,2]
[339222767,1727369439123,-161.23807113,0.00016373,2]
[339222768,1727369439133,-302.20087022,0.0001641,2]
[339222769,1727369439155,-500.0,0.00016438,2]
[339222770,1727369439164,-500.7268362,0.0001647,2]
[339222771,1727369439174,-166.666666,0.00016479,2]
[339222772,1727369439183,-380.0,0.000168,2]
[339222773,1727369439194,-235.107178,0.00016828,2]
[339222774,1727369439204,-238.771901,0.00016828,2]
[339222775,1727369439216,-199.643417,0.00016828,2]
[339222776,1727369439228,-162.799028,0.00016828,2]
[339222777,1727369439238,-166.666666,0.00016832,2]
[339222778,1727369439249,-658.5,0.000169,2]
[339222779,1727369439259,-152.06122768,0.0001696,2]
[339222780,1727369439268,-235.107178,0.00017039,2]
[339222781,1727369439455,-238.771901,0.00017039,2]
[339222782,1727369439468,-303.695,0.0001706,2]
[339222783,1727369439477,-500.0,0.0001706,2]
[339222784,1727369439487,-500.0,0.0001706,2]
[339222785,1727369439498,-420.0,0.00017094,2]
[339222786,1727369439507,-420.0,0.00017192,2]
[339222787,1727369439517,-235.107178,0.00017249,2]
[339222788,1727369439527,-238.771901,0.00017249,2]
[339222789,1727369439536,-380.0,0.0001732,2]
[339222790,1727369439548,-235.107178,0.0001746,2]
[339222791,1727369439558,-238.771901,0.0001746,2]
[339222792,1727369439567,-235.107178,0.0001767,2]
[339222793,1727369439576,-238.771901,0.0001767,2]
[339222794,1727369439586,-198.70954814,0.0001774,2]
[339222795,1727369439596,-500.0,0.0001774,2]
[339222796,1727369439606,-180.08542667,0.0001774,2]
[339222797,1727369439616,-562.74038288,0.0001774,2]
[339222798,1727369439625,-343.26567875,0.0001774,2]
[339222799,1727369439634,-500.0,0.0001774,2]
[339222800,1727369439643,-549.67168776,0.0001774,2]
[339222801,1727369439653,-500.0,0.0001774,2]
[339222802,1727369439663,-500.0,0.0001774,2]
[339222803,1727369439672,-500.0,0.0001774,2]
[339222804,1727369439682,-500.0,0.0001774,2]
[339222805,1727369439692,-500.0,0.0001774,2]
[339222806,1727369439702,-500.0,0.0001774,2]
[339222807,1727369439717,-198.15097453,0.0001774,2]
[339222808,1727369439727,-487.28976989,0.00017741,2]
[339222809,1727369439737,-31175.27227963,0.00017741,2]
[339222830,1727369440552,-12102.57971114,0.00017741,2]
[339222832,1727369440591,-25214.50971473,0.00017741,2]
[339222834,1727369440601,-81931.3745983,0.00017741,2]
[339222836,1727369440611,-1151.65663372,0.00017751,2]
[339222838,1727369440620,-600.0,0.00017751,2]
[339222840,1727369440629,-500.0,0.00017773,2]
[339222842,1727369440638,-500.0,0.00017773,2]
[339222844,1727369440648,-500.81581184,0.00017773,2]
[339222846,1727369440658,-500.0,0.00017773,2]
[339222848,1727369440667,-500.0,0.00017773,2]
[339222850,1727369440676,-500.0,0.00017773,2]
[339222852,1727369440686,-380.0,0.0001785,2]
[339222853,1727369440695,-1190.07437966,0.00017877,2]
[339222854,1727369440704,-422.14838519,0.00017913,2]
[339222855,1727369440715,-1000.0,0.00018,2]
[339222857,1727369440726,-1000.0,0.00018141,2]
[339222859,1727369440735,-1000.0,0.00018141,2]
[339222861,1727369440745,-1000.0,0.00018141,2]
[339222863,1727369440754,-1000.0,0.00018141,2]
[339222865,1727369440764,-1000.0,0.00018141,2]
[339222866,1727369440775,-1000.0,0.00018141,2]
[339222867,1727369440784,-1000.0,0.00018141,2]
[339222868,1727369440794,-1000.0,0.00018141,2]
[339222869,1727369440803,-922.06203469,0.00018141,2]
[339222870,1727369440812,-500.0,0.000182,2]
[339222871,1727369440821,-500.0,0.000182,2]
[339222872,1727369440831,-500.0,0.0001828,2]
[339222873,1727369440840,-1125.10540032,0.00018321,2]
[339222874,1727369440850,-1000.0,0.00018321,2]
[339222875,1727369440860,-1000.0,0.00018321,2]
[339222876,1727369440870,-500.0,0.00018321,2]
[339222877,1727369440880,-380.0,0.0001837,2]
[339222878,1727369440890,-722.48283532,0.00018412,2]
[339222879,1727369440900,-500.0,0.00018473,2]
[339222880,1727369440909,-1000.0,0.000185,2]
[339222881,1727369440919,-587.0,0.00018697,2]
[339222882,1727369440929,-150.112233,0.000187,2]
[339222883,1727369440938,-3204.998,0.00018712,2]
[339222884,1727369440948,-300.133,0.00018712,2]
[339222885,1727369440958,-1049.04192041,0.00018748,2]
[339222886,1727369440969,-1000.0,0.00018748,2]
[339222887,1727369440979,-1871.73890082,0.00018773,2]
[339222888,1727369440989,-6434.96255388,0.00018789,2]
[339222889,1727369440998,-261.2116043,0.00018822,2]
[339222890,1727369441008,-151.0,0.00018862,2]
[339222891,1727369441018,-383.865791,0.00018862,2]
[339222892,1727369441028,-151.0,0.00018862,2]
[339222893,1727369441037,-383.865791,0.00018862,2]
[339222894,1727369441046,-151.0,0.00018862,2]
[339222895,1727369441056,-151.0,0.00018862,2]
[339222896,1727369441065,-2267.07483095,0.00018862,2]
[339222897,1727369441075,-2840.05598012,0.00018862,2]
[339222898,1727369441084,-136984.723411,0.00018862,2]
[339222899,1727369441094,-124940.08669399,0.00018862,3]
[339222931,1727369446602,-500.64112753,0.00017773,2]
[339222932,1727369446613,-38922.66250301,0.00018862,3]
[339222933,1727369446622,-151.0,0.00018872,2]
[339222934,1727369446632,-383.865791,0.00018872,2]
[339222935,1727369446641,-151.0,0.00018872,2]
[339222936,1727369446651,-383.865791,0.00018872,2]
[339222937,1727369446660,-151.0,0.00018872,2]
[339222938,1727369446670,-151.0,0.00018872,2]
[339222939,1727369446679,-68492.3617055,0.00018872,2]
[339222940,1727369446689,-81931.3745983,0.00018872,3]
[339222941,1727369446698,-300.61483165,0.00018873,2]
[339222942,1727369446707,-151.69214655,0.00018873,2]
[339222943,1727369446717,-500.13370929,0.00018873,2]
[339222944,1727369446728,-500.0,0.00018873,2]
[339222945,1727369446738,-500.78184371,0.00018873,2]
[339222946,1727369446748,-3.01495303,0.00018882,2]
[339222955,1727369658912,519.9744707,0.00021,120]
[339222973,1727370240187,275.400404,0.00021,60]
[339223041,1727370638193,-340.0,0.000147,2]
[339223042,1727370638205,-1883.03544999,0.00015,5]
[339223043,1727370638217,-500.0,0.00015068,2]
[339223044,1727370638229,-166.666666,0.00015068,2]
[339223045,1727370638243,-153.75862381,0.00015089,2]
[339223046,1727370638255,-300.0,0.00015184,2]
[339223048,1727370638265,-300.0,0.00015184,2]
[339223050,1727370638275,-24900.0,0.00015185,2]
[339223051,1727370638287,-432.891469,0.00015185,2]
[339223052,1727370638298,-173.42282,0.00015185,2]
[339223053,1727370638309,-1424.6600141,0.00015185,2]
[339223054,1727370638320,-681.014602,0.00015185,2]
[339223055,1727370638333,-173.42282,0.00015189,2]
[339223056,1727370638345,-173.42282,0.00015193,2]
[339223057,1727370638355,-173.42282,0.00015197,2]
[339223058,1727370638371,-188.68344161,0.00015199,2]
[339223059,1727370638381,-500.0,0.000152,2]
[339223060,1727370638392,-410.47732977,0.000152,2]
[339223061,1727370638402,-501.50871244,0.000152,2]
[339223062,1727370638412,-500.0,0.000152,2]
[339223063,1727370638423,-500.0,0.000152,2]
[339223064,1727370638434,-500.0,0.000152,2]
[339223065,1727370638445,-500.0,0.000152,2]
[339223066,1727370638457,-500.0,0.000152,2]
[339223067,1727370638468,-173.42282,0.00015201,2]
[339223068,1727370638478,-173.42282,0.00015205,2]
[339223069,1727370638489,-173.42282,0.00015209,2]
[339223070,1727370638500,-173.42282,0.00015213,2]
[339223071,1727370638510,-173.42282,0.00015217,2]
[339223072,1727370638521,-173.42282,0.00015221,2]
[339223073,1727370638532,-173.42282,0.00015225,2]
[339223074,1727370638545,-173.42282,0.00015229,2]
[339223075,1727370638556,-173.42282,0.00015233,2]
[339223076,1727370638568,-500.0,0.00015233,2]
[339223077,1727370638579,-500.0,0.00015233,2]
[339223078,1727370638589,-500.0,0.00015233,2]
[339223079,1727370638601,-500.0,0.00015233,2]
[339223080,1727370638613,-500.0,0.00015233,2]
[339223081,1727370638625,-173.42282,0.00015237,2]
[339223082,1727370638635,-173.42282,0.00015241,2]
[339223083,1727370638646,-173.42282,0.00015245,2]
[339223084,1727370638656,-173.42282,0.00015249,2]
[339223085,1727370638666,-173.42282,0.00015253,2]
[339223086,1727370638676,-173.42282,0.00015257,2]
[339223087,1727370638687,-340.0,0.0001526,2]
[339223088,1727370638698,-173.42282,0.00015261,2]
[339223089,1727370638709,-160.488744,0.00015299,2]
[339223090,1727370638719,-166.666666,0.00015447,2]
[339223091,1727370638730,-160.488744,0.00015697,2]
[339223092,1727370638741,-500.0,0.00015748,2]
[339223093,1727370638751,-500.0,0.00015748,2]
[339223094,1727370638762,-1000.0,0.00015781,2]
[339223095,1727370638772,-306.87364293,0.00015781,2]
[339223096,1727370638783,-500.0,0.00015781,2]
[339223097,1727370638793,-1000.0,0.00015781,2]
[339223098,1727370638804,-340.0,0.0001581,2]
[339223099,1727370638813,-166.666666,0.00015826,2]
[339223100,1727370638825,-681.014602,0.0001587,2]
[339223101,1727370638835,-254.93310947,0.00015969,2]
[339223102,1727370638845,-3000.0,0.00016,2]
[339223103,1727370638857,-4352.923682,0.0001601,2]
[339223104,1727370638870,-160.488744,0.00016096,2]
[339223105,1727370638880,-300.0,0.000161,6]
[339223106,1727370638891,-166.666666,0.00016204,2]
[339223107,1727370638902,-340.0,0.0001637,2]
[339223108,1727370638916,-681.014602,0.00016555,2]
[339223109,1727370638927,-166.666666,0.00016583,2]
[339223110,1727370638939,-420.0,0.00016615,2]
[339223111,1727370638952,-420.0,0.00016702,2]
[339223112,1727370638963,-499.01319241,0.00016783,2]
[339223113,1727370638974,-1506.98960382,0.00016783,2]
[339223114,1727370638984,-271.331706,0.00016828,2]
[339223115,1727370638994,-217.065364,0.00016828,2]
[339223116,1727370639005,-275.035861,0.00016828,2]
[339223117,1727370639015,-271.331706,0.00016828,2]
[339223118,1727370639026,-235.107178,0.00016828,2]
[339223119,1727370639037,-340.0,0.0001693,2]
[339223120,1727370639055,-166.666666,0.00016961,2]
[339223121,1727370639073,-366.67751789,0.00016986,2]
[339223122,1727370639089,-217.065364,0.00017039,2]
[339223123,1727370639101,-275.035861,0.00017039,2]
[339223124,1727370639113,-271.331706,0.00017039,2]
[339223125,1727370639126,-235.107178,0.00017039,2]
[339223126,1727370639137,-422.14838519,0.00017059,2]
[339223127,1727370639148,-659.25,0.000171,2]
[339223128,1727370639158,-217.065364,0.00017249,2]
[339223129,1727370639168,-275.035861,0.00017249,2]
[339223136,1727370639372,-271.331706,0.00017249,2]
[339223137,1727370639389,-235.107178,0.00017249,2]
[339223138,1727370639400,-217.065364,0.0001746,2]
[339223139,1727370639411,-275.035861,0.0001746,2]
[339223140,1727370639421,-271.331706,0.0001746,2]
[339223141,1727370639430,-235.107178,0.0001746,2]
[339223142,1727370639451,-160.0,0.000176,3]
[339223143,1727370639460,-478.51701604,0.0001764,2]
[339223145,1727370639470,-217.065364,0.0001767,2]
[339223146,1727370639479,-275.035861,0.0001767,2]
[339223147,1727370639489,-271.331706,0.0001767,2]
[339223148,1727370639498,-235.107178,0.0001767,2]
[339223149,1727370639509,-500.0,0.00017808,2]
[339223150,1727370639519,-587.0,0.0001818,2]
[339223151,1727370639528,-587.0,0.00018372,2]
[339223153,1727370639543,-151.00831979,0.00018439,2]
[339223156,1727370639555,-5000.0,0.000185,2]
[339223158,1727370639564,-465.6758508,0.00018522,2]
[339223160,1727370639574,-6434.96255388,0.00018543,2]
[339223162,1727370639584,-160.0,0.0001855,4]
[339223164,1727370639594,-218.075,0.00018704,2]
[339223166,1727370639603,-1000.0,0.00018762,2]
[339223167,1727370639616,-1871.73890082,0.00018822,2]
[339223169,1727370639625,-240.28597512,0.00018842,2]
[339223171,1727370639635,-500.0,0.00018842,2]
[339223173,1727370639644,-393.91826802,0.00018842,2]
[339223175,1727370639654,-500.0,0.00018842,2]
[339223177,1727370639663,-634.77018143,0.00018842,2]
[339223179,1727370639673,-500.0,0.00018842,2]
[339223181,1727370639682,-15941.51444274,0.00018843,2]
[339223183,1727370639691,-324.85984659,0.00018843,2]
[339223185,1727370639701,-184929.376605,0.00018852,2]
[339223187,1727370639710,-27343.8073366,0.00018852,3]
[339223189,1727370639719,-151.0,0.00018862,2]
[339223191,1727370639728,-37453.34960739,0.00018862,2]
[339223208,1727370639894,-54041.56364922,0.00018862,2]
[339223211,1727370639906,-328.28270888,0.00018862,2]
[339223213,1727370639917,-31463.05510451,0.00018862,2]
[339223214,1727370639926,-18229.204891,0.00018862,3]
[339223216,1727370639935,-151.0,0.00018872,2]
[339223218,1727370639944,-151.0,0.00018872,2]
[339223220,1727370639953,-151.0,0.00018872,2]
[339223222,1727370639962,-151.0,0.00018872,2]
[339223224,1727370639971,-151.0,0.00018872,2]
[339223226,1727370639980,-151.0,0.00018872,2]
[339223228,1727370639989,-151.870809,0.00018872,2]
[339223230,1727370639998,-331.052047,0.00018872,2]
[339223232,1727370640007,-331.052047,0.00018872,2]
[339223234,1727370640016,-151.0,0.00018872,2]
[339223236,1727370640026,-151.0,0.00018872,2]
[339223237,1727370640035,-151.0,0.00018872,2]
[339223239,1727370640044,-639.032046,0.00018872,2]
[339223240,1727370640053,-639.032046,0.00018872,2]
[339223241,1727370640062,-151.0,0.00018872,2]
[339223242,1727370640071,-151.0,0.00018872,2]
[339223243,1727370640080,-345.479212,0.00018872,2]
[339223244,1727370640089,-345.479212,0.00018872,2]
[339223245,1727370640099,-151.0,0.00018872,2]
[339223246,1727370640108,-151.0,0.00018872,2]
[339223247,1727370640119,-151.0,0.00018872,2]
[339223248,1727370640128,-468.944613,0.00018872,2]
[339223249,1727370640137,-468.944613,0.00018872,2]
[339223250,1727370640145,-151.0,0.00018872,2]
[339223251,1727370640155,-9114.60244552,0.00018872,3]
[339223252,1727370640164,-9114.60244552,0.0001888,3]
[339223253,1727370640173,-147.98504697,0.00018882,2]
[339223254,1727370640183,-151.0,0.00018882,2]
[339223255,1727370640192,-151.0,0.00018882,2]
[339223256,1727370640202,-151.0,0.00018882,2]
[339223257,1727370640211,-525.0,0.00018882,2]
[339223258,1727370640221,-53079.011,0.00018882,2]
[339223259,1727370640230,-248.060011,0.0001889,2]
[339223260,1727370640240,-151.0,0.0001889,2]
[339223261,1727370640252,-151.0,0.0001889,2]
[339223262,1727370640263,-151.0,0.0001889,2]
[339223263,1727370640272,-151.0,0.0001889,2]
[339223264,1727370640281,-331.052047,0.0001889,2]
[339223265,1727370640290,-331.052047,0.0001889,2]
[339223266,1727370640300,-151.0,0.0001889,2]
[339223267,1727370640309,-151.0,0.0001889,2]
[339223268,1727370640318,-2000.0,0.0001889,2]
[339223269,1727370640327,-2000.0,0.0001889,2]
[339223270,1727370640336,-2000.0,0.0001889,2]
[339223271,1727370640345,-2019.308315,0.0001889,2]
[339223272,1727370640354,-151.0,0.0001889,2]
[339223273,1727370640363,-639.032046,0.0001889,2]
[339223274,1727370640378,-639.032046,0.0001889,2]
[339223275,1727370640388,-151.0,0.0001889,2]
[339223276,1727370640397,-9114.60244552,0.0001889,3]
[339223277,1727370640407,-151.0,0.0001889,2]
[339223278,1727370640416,-345.479212,0.0001889,2]
[339223279,1727370640426,-345.479212,0.0001889,2]
[339223280,1727370640435,-151.0,0.0001889,2]
[339223281,1727370640444,-151.0,0.0001889,2]
[339223282,1727370640454,-151.0,0.0001889,2]
[339223283,1727370640470,-468.944613,0.0001889,2]
[339223284,1727370640479,-468.944613,0.0001889,2]
[339223285,1727370640488,-468.944613,0.0001889,2]
[339223286,1727370640497,-468.944613,0.0001889,2]
[339223287,1727370640507,-150.112233,0.000189,2]
[339223288,1727370640516,-19871.34920418,0.000189,2]
[339223289,1727370640525,-150.112233,0.000189,2]
[339223290,1727370640536,-155.17171,0.000189,2]
[339223291,1727370640546,-151.0,0.000189,2]
[339223292,1727370640555,-151.0,0.000189,2]
[339223293,1727370640564,-151.0,0.000189,2]
[339223294,1727370640574,-151.0,0.000189,2]
[339223295,1727370640584,-331.052047,0.000189,2]
[339223296,1727370640594,-331.052047,0.000189,2]
[339223297,1727370640603,-151.0,0.000189,2]
[339223298,1727370640614,-151.0,0.000189,2]
[339223299,1727370640630,-639.032046,0.000189,2]
[339223300,1727370640639,-639.032046,0.000189,2]
[339223301,1727370640649,-151.0,0.000189,2]
[339223302,1727370640659,-151.0,0.000189,2]
[339223303,1727370640668,-345.479212,0.000189,2]
[339223304,1727370640678,-345.479212,0.000189,2]
[339223305,1727370640687,-151.0,0.000189,2]
[339223306,1727370640697,-151.0,0.000189,2]
[339223307,1727370640707,-151.0,0.000189,2]
[339223308,1727370640716,-27343.8073366,0.00018912,3]
[339223309,1727370640726,-151.0,0.00018913,2]
[339223310,1727370640735,-190.288558,0.00018913,2]
[339223311,1727370640745,-151.0,0.00018922,2]
[339223312,1727370640755,-151.0,0.00018922,2]
[339223313,1727370640764,-151.0,0.00018922,2]
[339223314,1727370640773,-151.0,0.00018922,2]
[339223315,1727370640782,-151.0,0.00018922,2]
[339223316,1727370640791,-151.0,0.00018922,2]
[339223317,1727370640801,-151.0,0.00018922,2]
[339223318,1727370640810,-151.0,0.00018922,2]
[339223319,1727370640819,-331.052047,0.00018922,2]
[339223320,1727370640829,-331.052047,0.00018922,2]
[339223321,1727370640838,-331.052047,0.00018922,2]
[339223322,1727370640847,-331.052047,0.00018922,2]
[339223323,1727370640856,-151.0,0.00018922,2]
[339223324,1727370640865,-151.0,0.00018922,2]
[339223325,1727370640879,-196.869351,0.00018922,2]
[339223326,1727370640889,-639.032046,0.00018922,2]
[339223327,1727370640898,-639.032046,0.00018922,2]
[339223328,1727370640907,-639.032046,0.00018922,2]
[339223329,1727370640917,-639.032046,0.00018922,2]
[339223330,1727370640926,-151.0,0.00018922,2]
[339223331,1727370640936,-151.0,0.00018922,2]
[339223332,1727370640945,-151.0,0.00018922,2]
[339223333,1727370640954,-345.479212,0.00018922,2]
[339223334,1727370640964,-345.479212,0.00018922,2]
[339223335,1727370640976,-345.479212,0.00018922,2]
[339223336,1727370640986,-345.479212,0.00018922,2]
[339223337,1727370640995,-151.0,0.00018922,2]
[339223338,1727370641004,-151.0,0.00018922,2]
[339223339,1727370641013,-151.0,0.00018922,2]
[339223340,1727370641023,-166.442845,0.00018922,2]
[339223341,1727370641032,-468.944613,0.00018922,2]
[339223342,1727370641042,-468.944613,0.00018922,2]
[339223343,1727370641051,-468.944613,0.00018922,2]
[339223344,1727370641060,-468.944613,0.00018922,2]
[339223345,1727370641069,-9114.60244552,0.00018923,3]
[339223346,1727370641078,-2000.0,0.00018932,2]
[339223347,1727370641088,-2000.0,0.00018932,2]
[339223348,1727370641097,-2000.0,0.00018932,2]
[339223349,1727370641107,-2000.0,0.00018932,2]
[339223350,1727370641116,-2000.0,0.00018932,2]
[339223351,1727370641128,-2000.0,0.00018932,2]
[339223352,1727370641138,-2000.0,0.00018932,2]
[339223353,1727370641147,-2000.0,0.00018932,2]
[339223354,1727370641156,-2000.0,0.00018932,2]
[339223355,1727370641166,-2000.0,0.00018932,2]
[339223356,1727370641175,-2000.0,0.00018932,2]
[339223357,1727370641185,-2000.0,0.00018932,2]
[339223358,1727370641194,-151.0,0.00018933,2]
[339223359,1727370641204,-151.0,0.00018933,2]
[339223360,1727370641213,-151.0,0.00018933,2]
[339223361,1727370641222,-151.0,0.00018933,2]
[339223362,1727370641231,-153.513888,0.00018933,2]
[339223363,1727370641241,-151.0,0.00018933,2]
[339223364,1727370641250,-151.0,0.00018933,2]
[339223365,1727370641259,-151.0,0.00018933,2]
[339223366,1727370641268,-268.64208,0.00018933,2]
[339223367,1727370641277,-670.007234,0.00018933,2]
[339223368,1727370641288,-670.007234,0.00018933,2]
[339223369,1727370641297,-151.0,0.00018933,2]
[339223370,1727370641307,-317.133843,0.00018933,2]
[339223371,1727370641316,-151.0,0.00018933,2]
[339223372,1727370641325,-317.133843,0.00018933,2]
[339223373,1727370641334,-152.492772,0.00018933,2]
[339223374,1727370641345,-152.492772,0.00018933,2]
[339223375,1727370641355,-151.0,0.00018933,2]
[339223376,1727370641365,-416.328497,0.00018933,2]
[339223377,1727370641382,-416.328497,0.00018933,2]
[339223378,1727370641391,-2000.0,0.00018942,2]
[339223379,1727370641400,-2000.0,0.00018942,2]
[339223380,1727370641410,-2000.0,0.00018942,2]
[339223381,1727370641419,-2014.67680889,0.00018942,2]
[339223382,1727370641429,-151.0,0.00018942,2]
[339223383,1727370641439,-151.0,0.00018942,2]
[339223384,1727370641448,-151.0,0.00018942,2]
[339223385,1727370641459,-2267.07483095,0.00018942,2]
[339223386,1727370641468,-2840.05598012,0.00018942,2]
[339223387,1727370641477,-27343.8073366,0.00018943,3]
[339223388,1727370641487,-151.0,0.00018943,2]
[339223389,1727370641496,-151.0,0.00018943,2]
[339223390,1727370641505,-151.0,0.00018943,2]
[339223391,1727370641515,-151.0,0.00018943,2]
[339223392,1727370641524,-151.0,0.00018943,2]
[339223393,1727370641535,-151.0,0.00018943,2]
[339223394,1727370641547,-151.0,0.00018943,2]
[339223395,1727370641556,-263.27608,0.00018943,2]
[339223396,1727370641566,-151.0,0.00018943,2]
[339223397,1727370641576,-151.0,0.00018943,2]
[339223398,1727370641586,-209.41744,0.00018943,2]
[339223399,1727370641595,-151.0,0.00018943,2]
[339223400,1727370641606,-151.0,0.00018943,2]
[339223401,1727370641622,-151.0,0.00018943,2]
[339223402,1727370641632,-151.0,0.00018943,2]
[339223403,1727370641642,-151.0,0.00018943,2]
[339223404,1727370641652,-231.044768,0.00018943,2]
[339223405,1727370641662,-670.007234,0.00018943,2]
[339223406,1727370641671,-670.007234,0.00018943,2]
[339223407,1727370641681,-670.007234,0.00018943,2]
[339223408,1727370641691,-670.007234,0.00018943,2]
[339223409,1727370641701,-151.0,0.00018943,2]
[339223410,1727370641710,-151.0,0.00018943,2]
[339223411,1727370641721,-317.133843,0.00018943,2]
[339223412,1727370641731,-317.133843,0.00018943,2]